[Event "84th ESP-ch 2019"]
[Site "Marbella"]
[Date "2019.11.16"]
[Round "1.4"]
[White "Medina Romero, Jose"]
[Black "Perez Candelario, Manuel"]
[Result "0-1"]
[ECO "A41"]
[WhiteElo "2083"]
[BlackElo "2623"]
[Annotator "ChessBase"]
[PlyCount "66"]
[EventDate "2019.11.16"]
[EventType "swiss"]
[EventCountry "ESP"]
[SourceTitle "playchess.com"]
[Source "ChessBase"]
[SourceQuality "1"]
[TimeControl "5400+30"]

1. d4 {[%emt 0:00:00]} d6 {[%emt 0:00:00]} 2. Nf3 {[%emt 0:00:00]} g6 {[%emt 0:00:00]} 3. g3 {[%emt 0:00:18]} Bg7 {[%emt 0:00:00]} 4. Bg2 {[%emt 0:00:06]} Nd7 {[%emt 0:00:00]} 5. O-O {[%emt 0:00:17]} e5 {[%emt 0:00:07]} 6. e4 {[%emt 0:01:06]} Ne7 {[%emt 0:01:28]} 7. dxe5 {[%emt 0:09:38]} dxe5 {[%emt 0:00:30]} 8. Nc3 {[%emt 0:03:28]} O-O {[%emt 0:00:17]} 9. Bg5 {[%emt 0:02:00]} h6 {[%emt 0:09:51]} 10. Bxe7 {[%emt 0:02:37]} Qxe7 {[%emt 0:00:05]} 11. Nd5 {[%emt 0:01:12]} Qd8 {[%emt 0:00:39]} 12. c4 {[%emt 0:01:36]} c6 {[%emt 0:01:50]} 13. Nc3 {[%emt 0:00:18]} Qe7 {[%emt 0:00:49]} 14. Qe2 {[%emt 0:00:48]} Nc5 {[%emt 0:00:59]} 15. h3 {[%emt 0:00:18]} a5 {[%emt 0:01:43]} 16. Rad1 {[%emt 0:04:36]} a4 {[%emt 0:02:01]} 17. Rfe1 {[%emt 0:00:32]} Be6 {[%emt 0:01:40]} 18. Bf1 {[%emt 0:00:50]} Qc7 {[%emt 0:01:34]} 19. Qc2 Qb6 {[%emt 0:04:46]} 20. Rd6 {[%emt 0:10:14]} Qb4 {[%emt 0:01:18]} 21. a3 {[%emt 0:04:34]} Qa5 22. Red1 Nb3 {[%emt 0:02:15]} 23. Kg2 {[%emt 0:10:06]} Rfe8 {[%emt 0:05:06]} 24. Na2 {[%emt 0:04:29]} Qc5 {[%emt 0:04:31]} 25. Nc3 {[%emt 0:02:59]} Nd4 {[%emt 0:05:35]} 26. R6xd4 {[%emt 0:02:14]} exd4 {[%emt 0:00:07]} 27. Nxa4 {[%emt 0:00:07]} Qh5 {[%emt 0:03:06]} 28. h4 {[%emt 0:01:24]} Bg4 {[%emt 0:01:57]} 29. Be2 {[%emt 0:00:24]} Qa5 {[%emt 0:07:35]} 30. b3 {[%emt 0:01:26]} b5 {[%emt 0:01:16]} 31. cxb5 {[%emt 0:00:26]} cxb5 {[%emt 0:00:06]} 32. Nb2 {[%emt 0:04:17]} Qc3 {[%emt 0:04:20]} 33. Qd2 {[%emt 0:02:13]} Rxa3 {[%emt 0:02:50]} 0-1

[Event "84th ESP-ch 2019"]
[Site "Marbella"]
[Date "2019.11.16"]
[Round "1.5"]
[White "Salgado Lopez, Ivan"]
[Black "Aguado Doncel, Pablo Luis"]
[Result "1-0"]
[ECO "A06"]
[WhiteElo "2594"]
[BlackElo "2062"]
[Annotator "ChessBase"]
[PlyCount "79"]
[EventDate "2019.11.16"]
[EventType "swiss"]
[EventCountry "ESP"]
[SourceTitle "playchess.com"]
[Source "ChessBase"]
[SourceQuality "1"]
[TimeControl "5400+30"]

1. Nf3 {[%emt 0:00:00]} d5 {[%emt 0:00:00]} 2. b3 {[%emt 0:00:00]} Nf6 {[%emt 0:00:50]} 3. Bb2 {[%emt 0:00:07]} e6 {[%emt 0:00:58]} 4. g3 {[%emt 0:01:16]} Be7 {[%emt 0:01:18]} 5. Bg2 {[%emt 0:00:10]} O-O {[%emt 0:00:42]} 6. O-O {[%emt 0:00:09]} Nbd7 {[%emt 0:01:53]} 7. c4 {[%emt 0:00:39]} b6 {[%emt 0:01:36]} 8. cxd5 exd5 {[%emt 0:00:29]} 9. Nc3 {[%emt 0:03:27]} Bb7 {[%emt 0:00:46]} 10. Rc1 {[%emt 0:00:16]} c5 {[%emt 0:04:32]} 11. d4 {[%emt 0:00:08]} Rc8 {[%emt 0:02:01]} 12. Nh4 {[%emt 0:02:52]} cxd4 {[%emt 0:21:37]} 13. Qxd4 {[%emt 0:00:58]} Nc5 {[%emt 0:06:23]} 14. Nf5 {[%emt 0:00:30]} Ne6 {[%emt 0:00:30]} 15. Qa4 {[%emt 0:10:41]} Bc6 {[%emt 0:12:26]} 16. Qh4 {[%emt 0:03:51]} Re8 {[%emt 0:12:30]} 17. Rfd1 {[%emt 0:11:55]} d4 18. Nxd4 {[%emt 0:00:30]} Ne4 {[%emt 0:15:53]} 19. Nxc6 {[%emt 0:05:01]} Bxh4 {[%emt 0:08:53]} 20. Rxd8 {[%emt 0:11:00]} Nxd8 {[%emt 0:01:12]} 21. Nxe4 {[%emt 0:01:20]} Rxc6 {[%emt 0:02:06]} 22. gxh4 {[%emt 0:01:53]} Rxc1+ {[%emt 0:00:31]} 23. Bxc1 {[%emt 0:00:08]} Ne6 {[%emt 0:00:55]} 24. Nc3 {[%emt 0:05:06]} Rc8 {[%emt 0:00:53]} 25. Bd2 {[%emt 0:00:13]} Nd4 {[%emt 0:00:49]} 26. Kf1 {[%emt 0:00:53]} b5 {[%emt 0:00:26]} 27. e3 {[%emt 0:03:16]} b4 {[%emt 0:00:49]} 28. exd4 {[%emt 0:02:04]} bxc3 {[%emt 0:00:01]} 29. Bc1 {[%emt 0:00:18]} Rd8 {[%emt 0:00:36]} 30. d5 {[%emt 0:00:49]} Rd6 {[%emt 0:00:03]} 31. Be4 {[%emt 0:04:51]} Ra6 {[%emt 0:02:03]} 32. a3 {[%emt 0:00:20]} Rb6 {[%emt 0:00:04]} 33. b4 {[%emt 0:00:38]} g6 {[%emt 0:01:18]} 34. Ke2 {[%emt 0:00:58]} f5 {[%emt 0:00:02]} 35. Bc2 {[%emt 0:01:40]} Rd6 {[%emt 0:01:06]} 36. Bb3 {[%emt 0:01:09]} a5 {[%emt 0:01:04]} 37. Bc4 {[%emt 0:00:48]} Rb6 {[%emt 0:00:42]} 38. bxa5 {[%emt 0:00:30]} Rb1 {[%emt 0:00:23]} 39. Kd1 {[%emt 0:00:17]} Kf8 {[%emt 0:00:35]} 40. Kc2 {[%emt 0:00:33]} 1-0

[Event "84th ESP-ch 2019"]
[Site "Marbella"]
[Date "2019.11.16"]
[Round "1.6"]
[White "Fernandez Montero, Francisco M."]
[Black "Santos Ruiz, Miguel"]
[Result "0-1"]
[ECO "B23"]
[WhiteElo "2044"]
[BlackElo "2583"]
[Annotator "ChessBase"]
[PlyCount "80"]
[EventDate "2019.11.16"]
[EventType "swiss"]
[EventCountry "ESP"]
[SourceTitle "playchess.com"]
[Source "ChessBase"]
[SourceQuality "1"]
[TimeControl "5400+30"]

1. e4 {[%emt 0:00:00]} c5 {[%emt 0:00:00]} 2. Nc3 {[%emt 0:00:00]} Nc6 {[%emt 0:00:00]} 3. f4 {[%emt 0:00:00]} g6 {[%emt 0:00:00]} 4. Nf3 {[%emt 0:00:12]} Bg7 {[%emt 0:00:01]} 5. Be2 {[%emt 0:00:51]} e6 {[%emt 0:04:32]} 6. O-O {[%emt 0:00:58]} Nge7 {[%emt 0:02:06]} 7. Qe1 {[%emt 0:01:11]} d5 {[%emt 0:02:58]} 8. d3 {[%emt 0:00:21]} b6 {[%emt 0:06:41]} 9. a4 {[%emt 0:10:42]} Nb4 {[%emt 0:07:53]} 10. Bd1 {[%emt 0:01:06]} Ba6 {[%emt 0:00:30]} 11. Nb5 {[%emt 0:06:33]} O-O {[%emt 0:11:46]} 12. Ne5 {[%emt 0:14:28]} Nbc6 {[%emt 0:11:24]} 13. Nxc6 {[%emt 0:01:06]} Nxc6 {[%emt 0:00:03]} 14. c3 {[%emt 0:01:20]} Ne7 {[%emt 0:06:59]} 15. Qh4 {[%emt 0:06:20]} Qd7 {[%emt 0:03:19]} 16. Bc2 {[%emt 0:09:54]} Bb7 {[%emt 0:05:17]} 17. Be3 {[%emt 0:02:53]} d4 {[%emt 0:03:07]} 18. Bd2 {[%emt 0:01:56]} a6 {[%emt 0:04:36]} 19. Na3 {[%emt 0:00:12]} dxc3 {[%emt 0:01:32]} 20. Bxc3 {[%emt 0:00:28]} Nc6 {[%emt 0:03:22]} 21. Rae1 {[%emt 0:14:43]} Nd4 {[%emt 0:01:02]} 22. Bd1 {[%emt 0:00:34]} b5 {[%emt 0:05:22]} 23. axb5 {[%emt 0:01:57]} axb5 {[%emt 0:00:15]} 24. Nc2 {[%emt 0:01:04]} Ra2 {[%emt 0:04:29]} 25. Qf2 {[%emt 0:05:30]} Rd8 {[%emt 0:01:14]} 26. e5 {[%emt 0:07:34]} Nxc2 {[%emt 0:04:47]} 27. Bxc2 {[%emt 0:00:34]} b4 {[%emt 0:00:43]} 28. Bb1 {[%emt 0:01:23]} Ra5 {[%emt 0:00:41]} 29. Bd2 {[%emt 0:00:13]} Bf8 {[%emt 0:00:25]} 30. Rc1 {[%emt 0:01:02]} Qd5 {[%emt 0:02:19]} 31. Be3 {[%emt 0:01:03]} Be7 {[%emt 0:00:27]} 32. Rfd1 {[%emt 0:01:19]} Rd7 {[%emt 0:01:36]} 33. Rd2 {[%emt 0:04:00]} Ra1 {[%emt 0:01:13]} 34. Qf1 {[%emt 0:02:05]} c4 {[%emt 0:04:00]} 35. dxc4 {[%emt 0:01:07]} Qxd2 {[%emt 0:00:05]} 36. Bxd2 {[%emt 0:00:14]} Bc5+ {[%emt 0:00:11]} 37. Kh1 {[%emt 0:00:35]} Rxd2 {[%emt 0:00:04]} 38. h3 {[%emt 0:01:24]} Rxb2 {[%emt 0:01:03]} 39. Bc2 {[%emt 0:01:47]} Raa2 {[%emt 0:01:00]} 40. Qd1 {[%emt 0:00:34]} b3 {[%emt 0:00:15]} 0-1

[Event "84th ESP-ch 2019"]
[Site "Marbella"]
[Date "2019.11.16"]
[Round "1.7"]
[White "Santos Latasa, Jaime"]
[Black "Jimenez Fernandez, Rebeca"]
[Result "1-0"]
[ECO "A35"]
[WhiteElo "2581"]
[BlackElo "2043"]
[Annotator "ChessBase"]
[PlyCount "73"]
[EventDate "2019.11.16"]
[EventType "swiss"]
[EventCountry "ESP"]
[SourceTitle "playchess.com"]
[Source "ChessBase"]
[SourceQuality "1"]
[TimeControl "5400+30"]

1. Nf3 {[%emt 0:00:00]} Nf6 {[%emt 0:00:00]} 2. c4 {[%emt 0:00:00]} c5 {[%emt 0:00:00]} 3. Nc3 {[%emt 0:00:10]} Nc6 {[%emt 0:00:00]} 4. d4 {[%emt 0:01:12]} cxd4 {[%emt 0:00:20]} 5. Nxd4 {[%emt 0:00:07]} g6 {[%emt 0:00:03]} 6. e4 {[%emt 0:00:18]} Bg7 {[%emt 0:00:05]} 7. Be3 {[%emt 0:00:32]} d6 {[%emt 0:00:20]} 8. f3 {[%emt 0:00:46]} O-O {[%emt 0:00:10]} 9. Qd2 {[%emt 0:00:21]} Bd7 {[%emt 0:00:20]} 10. Be2 {[%emt 0:01:00]} Nxd4 {[%emt 0:01:04]} 11. Bxd4 {[%emt 0:00:09]} Bc6 {[%emt 0:01:06]} 12. O-O {[%emt 0:00:17]} Nd7 {[%emt 0:01:01]} 13. Bf2 {[%emt 0:00:11]} a5 {[%emt 0:00:53]} 14. b3 {[%emt 0:00:09]} Rc8 {[%emt 0:05:06]} 15. Rab1 {[%emt 0:04:32]} Be5 {[%emt 0:04:44]} 16. a3 {[%emt 0:01:51]} e6 {[%emt 0:02:59]} 17. Bd3 {[%emt 0:03:45]} Qe7 {[%emt 0:02:13]} 18. Rfe1 {[%emt 0:02:54]} Rfd8 {[%emt 0:02:03]} 19. f4 {[%emt 0:06:32]} Bg7 {[%emt 0:00:52]} 20. b4 {[%emt 0:00:51]} axb4 {[%emt 0:04:05]} 21. axb4 {[%emt 0:00:22]} b5 {[%emt 0:01:10]} 22. cxb5 {[%emt 0:08:50]} Bxc3 {[%emt 0:01:21]} 23. Qxc3 {[%emt 0:00:06]} Bxe4 {[%emt 0:02:31]} 24. Qd2 {[%emt 0:00:29]} Bxd3 {[%emt 0:00:22]} 25. Qxd3 {[%emt 0:00:11]} Rb8 {[%emt 0:06:31]} 26. Rbd1 {[%emt 0:05:12]} Nb6 {[%emt 0:01:15]} 27. Qh3 {[%emt 0:05:35]} Qf8 {[%emt 0:10:36]} 28. Bh4 {[%emt 0:16:10]} Rdc8 {[%emt 0:02:18]} 29. f5 {[%emt 0:01:01]} e5 {[%emt 0:10:42]} 30. fxg6 {[%emt 0:01:00]} fxg6 {[%emt 0:02:45]} 31. Rf1 {[%emt 0:00:45]} Qe8 {[%emt 0:00:41]} 32. Rxd6 {[%emt 0:00:33]} Nc4 {[%emt 0:03:06]} 33. Re6 {[%emt 0:04:39]} Qxb5 {[%emt 0:02:07]} 34. Rxg6+ {[%emt 0:00:44]} hxg6 {[%emt 0:04:08]} 35. Qe6+ {[%emt 0:00:06]} Kh7 {[%emt 0:00:21]} 36. Rf7+ {[%emt 0:00:33]} Kh6 {[%emt 0:00:17]} 37. Bg5+ {[%emt 0:00:03]} 1-0

[Event "84th ESP-ch 2019"]
[Site "Marbella"]
[Date "2019.11.16"]
[Round "1.8"]
[White "Garcia De Blas, Esteban"]
[Black "Ibarra Jerez, Jose Carlos"]
[Result "0-1"]
[ECO "A56"]
[WhiteElo "2031"]
[BlackElo "2540"]
[Annotator "ChessBase"]
[PlyCount "60"]
[EventDate "2019.11.16"]
[EventType "swiss"]
[EventCountry "ESP"]
[SourceTitle "playchess.com"]
[Source "ChessBase"]
[SourceQuality "1"]
[TimeControl "5400+30"]

1. d4 {[%emt 0:00:00]} Nf6 {[%emt 0:00:00]} 2. c4 {[%emt 0:00:00]} c5 {[%emt 0:03:47]} 3. Nf3 {[%emt 0:00:39]} cxd4 {[%emt 0:00:59]} 4. Nxd4 {[%emt 0:00:05]} e5 {[%emt 0:01:16]} 5. Nc2 {[%emt 0:00:26]} b5 {[%emt 0:05:29]} 6. cxb5 {[%emt 0:08:27]} d5 {[%emt 0:02:03]} 7. Bg5 {[%emt 0:13:34]} Nbd7 {[%emt 0:05:33]} 8. Nc3 {[%emt 0:07:36]} d4 {[%emt 0:02:50]} 9. Nd5 {[%emt 0:12:28]} Bb7 {[%emt 0:02:31]} 10. e4 {[%emt 0:18:15]} Nc5 {[%emt 0:09:41]} 11. Bxf6 {[%emt 0:16:44]} gxf6 {[%emt 0:01:08]} 12. b6 {[%emt 0:00:29]} Bxd5 {[%emt 0:08:49]} 13. Bb5+ {[%emt 0:00:28]} Ke7 {[%emt 0:02:33]} 14. exd5 {[%emt 0:00:21]} Qxb6 {[%emt 0:09:56]} 15. Bc6 {[%emt 0:01:35]} Qa6 {[%emt 0:01:01]} 16. d6+ {[%emt 0:12:20]} Kxd6 {[%emt 0:01:45]} 17. Bxa8 {[%emt 0:00:09]} Nd3+ {[%emt 0:02:06]} 18. Kf1 {[%emt 0:00:16]} Nf4+ {[%emt 0:03:15]} 19. Ke1 {[%emt 0:00:19]} Nd3+ {[%emt 0:01:39]} 20. Kf1 {[%emt 0:00:01]} Bh6 {[%emt 0:09:48]} 21. Bb7 {[%emt 0:02:08]} Qb5 {[%emt 0:00:02]} 22. Na3 {[%emt 0:00:34]} Qxb7 {[%emt 0:00:29]} 23. Qxd3 {[%emt 0:00:09]} Rc8 {[%emt 0:01:00]} 24. b3 {[%emt 0:01:02]} Ke7 {[%emt 0:01:25]} 25. Nc4 {[%emt 0:00:33]} Qd5 {[%emt 0:01:00]} 26. Ne3 {[%emt 0:01:11]} Bxe3 {[%emt 0:00:09]} 27. fxe3 {[%emt 0:00:12]} Rc3 {[%emt 0:00:04]} 28. Qd2 {[%emt 0:02:12]} Qe4 {[%emt 0:00:31]} 29. Rc1 {[%emt 0:01:04]} Qf5+ {[%emt 0:00:22]} 30. Kg1 {[%emt 0:01:00]} dxe3 {[%emt 0:00:11]} 0-1

[Event "84th ESP-ch 2019"]
[Site "Marbella"]
[Date "2019.11.16"]
[Round "1.9"]
[White "Cuenca Jimenez, Jose Fernando"]
[Black "Boutahar Belgasi, Tarik"]
[Result "1-0"]
[ECO "A15"]
[WhiteElo "2523"]
[BlackElo "2027"]
[Annotator "ChessBase"]
[PlyCount "89"]
[EventDate "2019.11.16"]
[EventType "swiss"]
[EventCountry "ESP"]
[SourceTitle "playchess.com"]
[Source "ChessBase"]
[SourceQuality "1"]
[TimeControl "5400+30"]

1. c4 {[%emt 0:00:00]} Nf6 {[%emt 0:00:00]} 2. Nf3 {[%emt 0:02:28]} e6 {[%emt 0:02:06]} 3. d4 {[%emt 0:02:10]} d5 {[%emt 0:00:09]} 4. g3 {[%emt 0:00:05]} Bb4+ {[%emt 0:01:22]} 5. Bd2 {[%emt 0:00:07]} Be7 {[%emt 0:00:04]} 6. Bg2 {[%emt 0:00:14]} O-O {[%emt 0:00:52]} 7. O-O {[%emt 0:00:04]} c6 {[%emt 0:03:47]} 8. Qc2 {[%emt 0:00:05]} Nbd7 {[%emt 0:03:33]} 9. Bf4 {[%emt 0:00:59]} Re8 {[%emt 0:00:18]} 10. Rd1 {[%emt 0:01:49]} Nf8 {[%emt 0:00:37]} 11. Nc3 {[%emt 0:04:05]} Ng6 {[%emt 0:04:04]} 12. Bc1 {[%emt 0:03:09]} Bb4 {[%emt 0:16:23]} 13. a3 {[%emt 0:09:19]} Ba5 {[%emt 0:19:12]} 14. b3 {[%emt 0:05:28]} Qe7 {[%emt 0:07:54]} 15. Bb2 {[%emt 0:07:03]} Bd7 {[%emt 0:00:47]} 16. e3 {[%emt 0:05:19]} Red8 {[%emt 0:06:31]} 17. Qe2 {[%emt 0:11:33]} Rac8 {[%emt 0:06:03]} 18. b4 {[%emt 0:04:18]} Bc7 {[%emt 0:00:17]} 19. e4 {[%emt 0:00:14]} dxc4 {[%emt 0:05:29]} 20. e5 {[%emt 0:04:15]} Nd5 {[%emt 0:00:20]} 21. Qxc4 {[%emt 0:00:23]} Nxc3 {[%emt 0:00:30]} 22. Bxc3 {[%emt 0:03:02]} Be8 {[%emt 0:01:47]} 23. h4 {[%emt 0:01:53]} h6 {[%emt 0:00:43]} 24. Nd2 {[%emt 0:03:31]} Bb8 {[%emt 0:01:50]} 25. Ne4 {[%emt 0:03:58]} a6 {[%emt 0:03:56]} 26. Bd2 {[%emt 0:03:06]} Nf8 {[%emt 0:06:44]} 27. Be3 {[%emt 0:01:42]} Nh7 {[%emt 0:03:27]} 28. Bh3 {[%emt 0:02:24]} Rd5 {[%emt 0:00:20]} 29. Bg2 {[%emt 0:01:31]} Rdd8 {[%emt 0:00:10]} 30. Qc5 {[%emt 0:00:52]} Qc7 {[%emt 0:03:07]} 31. Rac1 {[%emt 0:02:39]} Rd5 {[%emt 0:01:03]} 32. Qc2 {[%emt 0:01:02]} Qe7 {[%emt 0:00:15]} 33. Nc5 {[%emt 0:04:31]} Rdd8 {[%emt 0:00:17]} 34. Qb3 {[%emt 0:01:06]} Ba7 {[%emt 0:00:15]} 35. Re1 {[%emt 0:00:28]} Rc7 {[%emt 0:01:17]} 36. Rcd1 {[%emt 0:00:44]} Bd7 {[%emt 0:01:12]} 37. Ne4 {[%emt 0:00:34]} Bc8 {[%emt 0:00:22]} 38. d5 {[%emt 0:03:04]} cxd5 {[%emt 0:00:57]} 39. Bxa7 {[%emt 0:00:20]} dxe4 {[%emt 0:00:10]} 40. Bc5 {[%emt 0:03:01]} Qe8 {[%emt 0:00:27]} 41. Rxd8 {[%emt 0:01:29]} Qxd8 {[%emt 0:00:03]} 42. Bxe4 {[%emt 0:01:17]} Rd7 {[%emt 0:00:59]} 43. Rc1 {[%emt 0:03:19]} Nf8 {[%emt 0:01:00]} 44. Bd6 {[%emt 0:00:23]} Qe8 {[%emt 0:00:40]} 45. Qc3 {[%emt 0:00:38]} 1-0

[Event "84th ESP-ch 2019"]
[Site "Marbella"]
[Date "2019.11.16"]
[Round "1.10"]
[White "Gutierrez Curras, Daniel"]
[Black "Narciso Dublan, Marc"]
[Result "0-1"]
[ECO "A06"]
[WhiteElo "2025"]
[BlackElo "2517"]
[Annotator "ChessBase"]
[PlyCount "51"]
[EventDate "2019.11.16"]
[EventType "swiss"]
[EventCountry "ESP"]
[SourceTitle "playchess.com"]
[Source "ChessBase"]
[SourceQuality "1"]
[TimeControl "5400+30"]

1. Nf3 {[%emt 0:00:00]} d5 {[%emt 0:00:00]} 2. g3 {[%emt 0:00:14]} Bg4 {[%emt 0:00:00]} 3. c4 {[%emt 0:03:15]} Bxf3 {[%emt 0:00:43]} 4. exf3 {[%emt 0:00:15]} c6 {[%emt 0:03:06]} 5. cxd5 {[%emt 0:05:04]} cxd5 {[%emt 0:00:13]} 6. Qb3 {[%emt 0:00:23]} Qd7 {[%emt 0:01:11]} 7. f4 {[%emt 0:01:12]} Nc6 {[%emt 0:00:37]} 8. Bg2 {[%emt 0:01:13]} e6 {[%emt 0:01:08]} 9. O-O {[%emt 0:07:23]} Nge7 {[%emt 0:00:57]} 10. Nc3 {[%emt 0:01:05]} Nf5 {[%emt 0:03:41]} 11. d3 {[%emt 0:02:12]} Be7 {[%emt 0:00:47]} 12. a3 {[%emt 0:03:24]} O-O {[%emt 0:01:28]} 13. Bd2 {[%emt 0:03:00]} Nfd4 {[%emt 0:08:03]} 14. Qd1 {[%emt 0:00:23]} Bf6 {[%emt 0:02:13]} 15. Rb1 {[%emt 0:01:39]} Rfc8 {[%emt 0:01:01]} 16. Qg4 {[%emt 0:02:19]} Ne7 {[%emt 0:04:50]} 17. h4 {[%emt 0:07:30]} Rc7 {[%emt 0:06:08]} 18. Rfd1 {[%emt 0:11:44]} Rac8 {[%emt 0:00:45]} 19. h5 {[%emt 0:00:37]} h6 {[%emt 0:03:53]} 20. Qh3 {[%emt 0:04:14]} Nb5 {[%emt 0:02:21]} 21. Nxb5 {[%emt 0:02:17]} Qxb5 {[%emt 0:00:10]} 22. Bb4 {[%emt 0:03:59]} Nf5 {[%emt 0:09:25]} 23. g4 {[%emt 0:03:17]} Nd4 {[%emt 0:00:39]} 24. Bf1 {[%emt 0:02:53]} Rc2 {[%emt 0:07:45]} 25. Qe3 {[%emt 0:00:50]} Qb6 {[%emt 0:10:46]} 26. Rbc1 {[%emt 0:06:16]} 0-1

[Event "84th ESP-ch 2019"]
[Site "Marbella"]
[Date "2019.11.16"]
[Round "1.11"]
[White "Arizmendi Martinez, Julen Luis"]
[Black "Sosa Suarez, Carla Cristina"]
[Result "1-0"]
[ECO "C03"]
[WhiteElo "2517"]
[BlackElo "2022"]
[Annotator "ChessBase"]
[PlyCount "45"]
[EventDate "2019.11.16"]
[EventType "swiss"]
[EventCountry "ESP"]
[SourceTitle "playchess.com"]
[Source "ChessBase"]
[SourceQuality "1"]
[TimeControl "5400+30"]

1. e4 {[%emt 0:01:13]} e6 {[%emt 0:00:00]} 2. d4 {[%emt 0:00:44]} d5 {[%emt 0:00:00]} 3. Nd2 {[%emt 0:00:21]} Be7 {[%emt 0:00:56]} 4. e5 {[%emt 0:03:25]} c5 {[%emt 0:02:17]} 5. c3 {[%emt 0:02:24]} Nc6 {[%emt 0:03:08]} 6. Bd3 {[%emt 0:00:17]} Bd7 {[%emt 0:04:20]} 7. Ne2 {[%emt 0:10:09]} f6 {[%emt 0:23:51]} 8. Nf4 {[%emt 0:27:39]} g6 {[%emt 0:34:36]} 9. Nf3 {[%emt 0:22:59]} Qb6 {[%emt 0:08:56]} 10. O-O {[%emt 0:05:59]} cxd4 {[%emt 0:07:04]} 11. cxd4 {[%emt 0:02:20]} g5 {[%emt 0:03:14]} 12. exf6 {[%emt 0:00:42]} Nxf6 {[%emt 0:01:09]} 13. Nxg5 {[%emt 0:00:47]} Nxd4 {[%emt 0:02:20]} 14. Be3 {[%emt 0:00:21]} e5 {[%emt 0:01:29]} 15. Nxd5 {[%emt 0:02:27]} Nxd5 {[%emt 0:00:03]} 16. Qh5+ {[%emt 0:00:08]} Kd8 {[%emt 0:00:03]} 17. Nf7+ {[%emt 0:00:56]} Kc8 {[%emt 0:03:42]} 18. Rac1+ {[%emt 0:09:53]} Nc7 {[%emt 0:01:14]} 19. Qxe5 {[%emt 0:03:11]} Nf3+ {[%emt 0:00:34]} 20. gxf3 {[%emt 0:00:02]} Rg8+ {[%emt 0:00:24]} 21. Kh1 {[%emt 0:00:08]} Bc6 {[%emt 0:00:37]} 22. Qf5+ {[%emt 0:00:08]} Kb8 {[%emt 0:00:22]} 23. Bxb6 {[%emt 0:00:07]} 1-0

[Event "84th ESP-ch 2019"]
[Site "Marbella"]
[Date "2019.11.16"]
[Round "1.12"]
[White "Antonano Fedz-Quincoces, Avelino"]
[Black "Espinosa Aranda, Angel"]
[Result "0-1"]
[ECO "B70"]
[WhiteElo "2021"]
[BlackElo "2511"]
[Annotator "ChessBase"]
[PlyCount "102"]
[EventDate "2019.11.16"]
[EventType "swiss"]
[EventCountry "ESP"]
[SourceTitle "playchess.com"]
[Source "ChessBase"]
[SourceQuality "1"]
[TimeControl "5400+30"]

1. e4 {[%emt 0:00:02]} c5 {[%emt 0:00:00]} 2. Nf3 {[%emt 0:00:10]} d6 {[%emt 0:00:10]} 3. d4 {[%emt 0:00:13]} cxd4 {[%emt 0:00:16]} 4. Nxd4 {[%emt 0:00:12]} Nf6 {[%emt 0:00:11]} 5. Nc3 {[%emt 0:00:10]} g6 {[%emt 0:00:05]} 6. Bc4 {[%emt 0:00:41]} Bg7 {[%emt 0:00:52]} 7. O-O {[%emt 0:00:32]} O-O {[%emt 0:00:10]} 8. Re1 {[%emt 0:04:49]} Nc6 {[%emt 0:00:17]} 9. Nb3 {[%emt 0:01:33]} Bg4 {[%emt 0:00:22]} 10. f3 {[%emt 0:01:27]} Be6 {[%emt 0:00:04]} 11. Bd5 {[%emt 0:09:59]} Rc8 {[%emt 0:02:53]} 12. Be3 {[%emt 0:02:35]} Bd7 {[%emt 0:06:30]} 13. Bxc6 {[%emt 0:04:48]} Bxc6 {[%emt 0:02:02]} 14. Bd4 {[%emt 0:09:49]} a6 {[%emt 0:06:16]} 15. Nd5 {[%emt 0:04:03]} Bxd5 {[%emt 0:09:35]} 16. exd5 {[%emt 0:00:25]} Re8 {[%emt 0:00:03]} 17. c3 {[%emt 0:05:57]} Qd7 {[%emt 0:08:32]} 18. Qd3 {[%emt 0:11:03]} b5 {[%emt 0:05:15]} 19. a3 {[%emt 0:06:39]} Qb7 {[%emt 0:03:58]} 20. Bxf6 {[%emt 0:02:20]} Bxf6 {[%emt 0:00:04]} 21. Re4 {[%emt 0:01:08]} a5 {[%emt 0:06:59]} 22. Rd1 {[%emt 0:02:59]} Kg7 {[%emt 0:12:30]} 23. Kh1 {[%emt 0:01:01]} Qb6 {[%emt 0:01:30]} 24. Nc1 {[%emt 0:06:44]} Rc4 {[%emt 0:01:27]} 25. Ne2 {[%emt 0:00:30]} Rxe4 {[%emt 0:01:21]} 26. Qxe4 {[%emt 0:01:24]} b4 {[%emt 0:00:23]} 27. axb4 {[%emt 0:02:17]} axb4 {[%emt 0:00:06]} 28. Qxb4 {[%emt 0:00:21]} Qxb4 {[%emt 0:05:38]} 29. cxb4 {[%emt 0:00:07]} Rb8 {[%emt 0:00:01]} 30. Rb1 {[%emt 0:02:28]} Rxb4 {[%emt 0:00:06]} 31. b3 {[%emt 0:00:15]} Kf8 {[%emt 0:01:00]} 32. g3 {[%emt 0:09:47]} Ke8 {[%emt 0:00:10]} 33. h4 {[%emt 0:00:15]} Kd7 {[%emt 0:01:41]} 34. Kg2 {[%emt 0:01:48]} Rb5 {[%emt 0:00:13]} 35. Nf4 {[%emt 0:01:31]} Be5 {[%emt 0:00:11]} 36. Nd3 {[%emt 0:00:55]} Rxd5 {[%emt 0:00:03]} 37. Nxe5+ {[%emt 0:00:16]} Rxe5 {[%emt 0:00:06]} 38. Kf2 {[%emt 0:00:23]} Kc6 {[%emt 0:00:10]} 39. f4 {[%emt 0:00:27]} Rc5 {[%emt 0:00:27]} 40. g4 {[%emt 0:02:33]} h5 {[%emt 0:02:35]} 41. f5 {[%emt 0:02:01]} Re5 {[%emt 0:03:53]} 42. Kg3 {[%emt 0:01:40]} Re4 {[%emt 0:00:10]} 43. Rc1+ {[%emt 0:00:48]} Kb7 {[%emt 0:01:23]} 44. Rc4 {[%emt 0:00:53]} Rxc4 {[%emt 0:07:23]} 45. bxc4 {[%emt 0:00:04]} e5 {[%emt 0:00:05]} 46. fxg6 {[%emt 0:02:07]} fxg6 {[%emt 0:00:03]} 47. gxh5 {[%emt 0:00:16]} gxh5 {[%emt 0:00:03]} 48. Kf3 {[%emt 0:00:19]} Kc6 {[%emt 0:00:03]} 49. Ke4 {[%emt 0:00:27]} Kc5 {[%emt 0:00:05]} 50. Kf5 {[%emt 0:00:21]} Kxc4 {[%emt 0:00:09]} 51. Kg5 {[%emt 0:00:20]} e4 {[%emt 0:00:04]} 0-1

[Event "84th ESP-ch 2019"]
[Site "Marbella"]
[Date "2019.11.16"]
[Round "1.13"]
[White "Del Rio De Angelis, Salvador G."]
[Black "Sanjuan Garcia, Miguel"]
[Result "1-0"]
[ECO "A57"]
[WhiteElo "2502"]
[BlackElo "2021"]
[Annotator "ChessBase"]
[PlyCount "35"]
[EventDate "2019.11.16"]
[EventType "swiss"]
[EventCountry "ESP"]
[SourceTitle "playchess.com"]
[Source "ChessBase"]
[SourceQuality "1"]
[TimeControl "5400+30"]

1. d4 {[%emt 0:00:00]} Nf6 {[%emt 0:00:00]} 2. c4 {[%emt 0:00:00]} c5 {[%emt 0:00:00]} 3. d5 {[%emt 0:00:02]} b5 {[%emt 0:00:00]} 4. cxb5 {[%emt 0:00:17]} a6 {[%emt 0:00:00]} 5. e3 {[%emt 0:00:13]} e6 {[%emt 0:04:02]} 6. Nc3 {[%emt 0:00:11]} Bb7 {[%emt 0:05:05]} 7. e4 {[%emt 0:01:28]} exd5 {[%emt 0:10:58]} 8. exd5 {[%emt 0:00:21]} d6 {[%emt 0:02:07]} 9. Nf3 {[%emt 0:03:43]} g6 {[%emt 0:02:26]} 10. bxa6 {[%emt 0:02:46]} Bxa6 {[%emt 0:02:20]} 11. Bxa6 {[%emt 0:00:13]} Nxa6 {[%emt 0:00:49]} 12. O-O {[%emt 0:00:38]} Bg7 {[%emt 0:00:20]} 13. Re1+ {[%emt 0:01:47]} Kf8 {[%emt 0:00:01]} 14. Nd2 {[%emt 0:03:40]} Nd7 {[%emt 0:06:44]} 15. Nb5 {[%emt 0:02:16]} Qb6 {[%emt 0:06:16]} 16. a4 {[%emt 0:00:22]} Nc7 {[%emt 0:00:16]} 17. Nc4 {[%emt 0:00:27]} Qb8 {[%emt 0:02:17]} 18. Nbxd6 {[%emt 0:02:06]} 1-0